Cogmind - Beta 16.1 @@@ ROGUE MODE // 2026.03.20 @ 13:54:03 Player: beans Result: Destroyed by V5-6QK(R) with Subdweller Machine Gun Performance ------------- Evolutions (0) 0 Regions Visited (3) 600 Robots Destroyed (3) 15 Value Destroyed (91) 91 Prototype IDs (0) 0 Alien Tech Used (0) 0 Bonus (84) 84 TOTAL SCORE: 790 Bonus ------- Follower Combat Kills 84 Cogmind --------- Core Integrity 0/250 Matter 281/300 Energy 99/100 System Corruption 0% Temperature Cool (0) Movement Core (50) Location -10/Subcaves Parts ------- > --- POWER (1) -------- (None) > --- PROPULSION (2) --- (None) > --- UTILITY (2) ------ (None) > --- WEAPON (2) ------- (None) > --- INVENTORY (5) ---- Light Nuclear Core Light Treads Machine Analyzer Peak State ------------ > --- POWER ------------ (None) > --- PROPULSION ------- Light Treads Light Treads > --- UTILITY ---------- (None) > --- WEAPON ----------- Light Assault Rifle > --- INVENTORY -------- (None) [Rating: 3] Favorites ----------- Power None Propulsion Light Treads Treads Light Treads Flight Unit Flight Unit Utility None Weapon Light Assault Rifle Ballistic Gun Light Assault Rifle Build | -11 -10 -10 -10 ------- Run | Yrd Mat Min Sub Slots Evolved . | . . . . Power . | . . . . Propulsion . | . . . . Utility . | . . . . Weapon . | . . . . Parts Attached 5 | 3 . . 2 Power . | . . . . Engine . | . . . . Core . | . . . . Reactor . | . . . . Propulsion 3 | 2 . . 1 Treads 2 | 2 . . . Leg . | . . . . Wheel . | . . . . Hover . | . . . . Flight 1 | . . . 1 Utility . | . . . . Device . | . . . . Storage . | . . . . Processor . | . . . . Hackware . | . . . . Protection . | . . . . Artifact . | . . . . Weapon 2 | 1 . . 1 Energy Gun . | . . . . Energy Cannon . | . . . . Ballistic Gun 2 | 1 . . 1 Ballistic Cannon . | . . . . Launcher . | . . . . Special Weapon . | . . . . Impact Weapon . | . . . . Slashing Weapon . | . . . . Piercing Weapon . | . . . . Special Melee Weapon . | . . . . Unidentified Prototypes . | . . . . Parts Lost 3 | . . . 3 Power . | . . . . Propulsion 1 | . . . 1 Utility . | . . . . Weapon 2 | . . . 2 Highest Loss Streak 1 | . . . 1 To Critical Strikes . | . . . . Average Backups 1 | . . . 2 Power . | . . . 1 Propulsion . | . . . . Utility . | . . . . Weapon . | . . . . Tool/Special . | . . . . Unused Backups 2 | . . . 2 Power 1 | . . . 1 Propulsion . | . . . . Utility 1 | . . . 1 Weapon . | . . . . Tool/Special . | . . . . Average Slot Usage (%) 31 | . 42 42 18 Treads 21 | . 28 28 13 Flight 1 | . . . 2 Ballistic Gun 8 | . 14 14 2 Peak Build Rating 3 | 3 3 3 3 Average Rating 2 | 2 3 3 1 On Entrance 2 | . 3 3 3 Avg Prop Armor Cover (%) . | . . . . Naked Turns 61 | . . . 61 Heaviest Build 1 | 1 1 1 1 Greatest Support 40 | 40 40 40 40 Greatest Overweight (x) . | . . . . Average Overweight (x) . | . . . . Largest Inventory Capacity 5 | 5 5 5 5 Average Capacity 5 | 5 5 5 5 Most Carried 4 | 3 . 1 4 Average Carried 1 | . . . 2 Final Capacity 5 | 5 5 5 5 Final Carried 3 | . . 1 3 Class Distribution -------------------- 100% | Mutant Dominant Class ---------------- Mutant | -10/Materials Mutant | -10/Mines Mutant | -10/Subcaves Resources | -11 -10 -10 -10 ----------- Run | Yrd Mat Min Sub Matter Collected 273 | 193 . 68 12 Remotely . | . . . . Salvage Created 107 | . . 92 15 Parts 6 | . . 6 . Haulers Intercepted . | . . . . Recyclers Shooed 3 | . . 3 . Parts Field Recycled . | . . . . Retrieved Matter . | . . . . Parts Self-Destructed 7 | . . . 7 Prevented . | . . . . Parts Restored . | . . . . Kills | -11 -10 -10 -10 ------- Run | Yrd Mat Min Sub Combat Hostiles Destroyed 3 | . . 2 1 Guns 3 | . . 2 1 Classes Destroyed 2 | . . 1 1 Swarmer 1 | . . . 1 Grunt 2 | . . 2 . Best Kill Streak 2 | . . 2 1 Combat Bots Only 2 | . . 2 1 Max Kills in Single Turn 1 | . . 1 1 Gunslinging . | . . . . Exploded . | . . . . Melee . | . . . . Uniques/NPCs Destroyed . | . . . . Combat | -11 -10 -10 -10 -------- Run | Yrd Mat Min Sub Hostile Shots Fired 63 | . . 43 20 Missed 17 | . . 15 2 Hits 46 | . . 28 18 Projectile 46 | . . 28 18 Damage Taken 740 | . . 371 369 Core 260 | . . 69 191 Absorbed by Shields . | . . . . Core Remaining (%) 100 | 100 . . . Volleys Fired 45 | . . 36 9 Largest 1 | . . 1 1 Hottest 30 | . . 20 30 Shots Fired 45 | . . 36 9 Gun 45 | . . 36 9 Cannon . | . . . . Launcher . | . . . . Special . | . . . . Kinetic 45 | . . 36 9 Thermal . | . . . . Explosive . | . . . . Electromagnetic . | . . . . Robot Hit Streak 7 | . . 7 6 Robot Miss Streak 1 | . . 1 1 Penetration Max . | . . . . Secondary Targets . | . . . . Shots Hit Robots 33 | . . 26 7 Core Hits 10 | . . 8 2 Critical Kills . | . . . . Critical Parts Destroyed . | . . . . Critical Strikes . | . . . . Melee Attacks . | . . . . Impact . | . . . . Slashing . | . . . . Piercing . | . . . . Sneak Attacks . | . . . . Combat Hostiles . | . . . . Follow-up Attacks . | . . . . Damage Inflicted 329 | . . 215 114 Guns 329 | . . 215 114 Cannons . | . . . . Explosions . | . . . . Melee . | . . . . Ramming . | . . . . Kinetic 329 | . . 215 114 Thermal . | . . . . Explosive . | . . . . Electromagnetic . | . . . . Impact . | . . . . Slashing . | . . . . Piercing . | . . . . Highest Corruption . | . . . . Average Corruption . | . . . . Corruption Purged . | . . . . Corruption Blocked . | . . . . Overload Shots . | . . . . Overflow Damage . | . . . . Projectiles . | . . . . Explosions . | . . . . Melee . | . . . . Knockbacks . | . . . . Impact . | . . . . Kinetic . | . . . . Secondary . | . . . . Self-Inflicted Damage . | . . . . Shots . | . . . . Rammed . | . . . . Targets Rammed . | . . . . Kicked . | . . . . Crushed . | . . . . Highest Temperature 10 | . . 10 . Average Temperature 5 | . . 5 . Received Heat Transfer 228 | . . 210 18 Siege Activations . | . . . . Martial Activations . | . . . . Shielding Activations . | . . . . Robots Disrupted . | . . . . Combat Hostiles . | . . . . Robots Corrupted . | . . . . Combat Hostiles . | . . . . Parts Fried . | . . . . Impact Corruptions . | . . . . Robots Melted . | . . . . Combat Hostiles . | . . . . Parts Melted . | . . . . Heat Transferred . | . . . . Parts Sabotaged . | . . . . Parts Stolen . | . . . . Parts Stripped . | . . . . Power Chain Reactions . | . . . . Alert | -11 -10 -10 -10 ------- Run | Yrd Mat Min Sub Maximum Alert Level . | . . . . Low Security (%) 100 | 100 100 100 . Level 1 . | . . . . Level 2 . | . . . . Level 3 . | . . . . Level 4 . | . . . . Level 5 . | . . . . High Security . | . . . . Max Security . | . . . . Peak Influence 50 | . . 50 . Initial . | . . . . Average 9 | . . 11 . Influence Increases 172 | . . 50 122 Destroy 0b10 Robot/C 140 | . . 40 100 Destroy Leader 20 | . . 10 10 Allied During Kill 12 | . . . 12 Influence Decreases 172 | . . 50 122 Time Decay 126 | . . 50 76 Lost Part 20 | . . . 20 Lost Ally 26 | . . . 26 Squads Dispatched . | . . . . Investigation . | . . . . Extermination . | . . . . Reinforcement . | . . . . Assault . | . . . . Garrison . | . . . . Intercept . | . . . . Searches Triggered . | . . . . Construction Impeded . | . . . . Haulers Reinforced . | . . . . Active Scanning Responses . | . . . . Cargo Convoy Interrupts . | . . . . Stealth | -11 -10 -10 -10 --------- Run | Yrd Mat Min Sub Distress Signals . | . . . . Communications Jammed . | . . . . Distress Signals . | . . . . Times Spotted 10 | . . 2 8 Peak Tracking Total 3 | . . 2 3 Tactical Retreats . | . . . . Traps | -11 -10 -10 -10 ------- Run | Yrd Mat Min Sub Traps Triggered . | . . . . Indirectly . | . . . . Trap Hack Attempts . | . . . . Triggered . | . . . . Disarmed . | . . . . Reprogrammed . | . . . . Reused . | . . . . Traps Extracted . | . . . . Installed . | . . . . Triggered . | . . . . Machines | -11 -10 -10 -10 ---------- Run | Yrd Mat Min Sub Machines Disabled . | . . . . Max in Single Turn . | . . . . Machines Repaired . | . . . . Machines Dismantled . | . . . . Machines Sabotaged . | . . . . Overloaded Fab Kills . | . . . . Hacking | -11 -10 -10 -10 --------- Run | Yrd Mat Min Sub Machines Accessed . | . . . . Terminals . | . . . . Fabricators . | . . . . Repair Stations . | . . . . Recycling Units . | . . . . Scanalyzers . | . . . . Garrison Access . | . . . . Total Hacks . | . . . . Successful . | . . . . Failed . | . . . . Catastrophic . | . . . . Database Lockouts . | . . . . Manual . | . . . . Terminals . | . . . . Fabricators . | . . . . Repair Stations . | . . . . Recycling Units . | . . . . Scanalyzers . | . . . . Garrison Access . | . . . . Terminal Hacks . | . . . . Fabricator Hacks . | . . . . Repair Station Hacks . | . . . . Recycling Unit Hacks . | . . . . Scanalyzer . | . . . . Garrison Access Hacks . | . . . . Unauthorized Hacks . | . . . . Terminals . | . . . . Fabricators . | . . . . Repair Stations . | . . . . Recycling Units . | . . . . Scanalyzers . | . . . . Garrison Access . | . . . . Data Cores Recovered . | . . . . Used . | . . . . Hacking Detections . | . . . . Full Trace Events . | . . . . Feedback Events . | . . . . Feedback Blocked . | . . . . Robot Schematics Acquired . | . . . . Robots Built . | . . . . Authchips . | . . . . Time . | . . . . Total Robot Build Rating . | . . . . Part Schematics Acquired . | . . . . Parts Built . | . . . . Authchips . | . . . . Time . | . . . . Total Part Build Rating . | . . . . Part Studies Acquired . | . . . . Parts Repaired . | . . . . Time . | . . . . Parts Recycled . | . . . . Recycled Matter . | . . . . Retrieved Matter . | . . . . Retrieved Components . | . . . . Parts Scanalyzed . | . . . . Part Schematics Acquired . | . . . . Parts Damaged . | . . . . Bothacking | -11 -10 -10 -10 ------------ Run | Yrd Mat Min Sub Used RIF Installer . | . . . . Robots Hacked . | . . . . Non-combat . | . . . . Combat . | . . . . Robot Hacks Applied . | . . . . Relay Couplers Released . | . . . . Fabnet Peak Effective % . | . . . . Robots Rewired . | . . . . Allies Hacked . | . . . . Hacks Repelled . | . . . . Allies | -11 -10 -10 -10 -------- Run | Yrd Mat Min Sub Total Allies 3 | . . 3 . Largest Group 3 | . . 3 3 Highest-Rated Group 40 | . . 40 40 Highest-Rated Ally 16 | . . 16 16 Total Orders . | . . . . Ally Attacks 26 | . . . 26 Total Damage 313 | . . . 313 Kills 5 | . . . 5 Allies Corrupted . | . . . . Allies Melted . | . . . . Intel | -11 -10 -10 -10 ------- Run | Yrd Mat Min Sub Active Infowar (turns) . | . . . . Robot Analysis Total . | . . . . Derelict Logs Recovered 2 | . . 1 1 Drone Launches . | . . . . Drone Recoveries . | . . . . Exploration | -11 -10 -10 -10 ------------- Run | Yrd Mat Min Sub Turns Passed 465 | 34 12 216 203 Spaces Moved 358 | 27 8 79 244 Core 130 | 13 . . 117 Treads 147 | 14 8 79 46 Legs . | . . . . Wheels . | . . . . Hover . | . . . . Flight 81 | . . . 81 Fastest Speed 40 | 50 160 160 40 Average Speed 92 | 107 160 160 67 Slowest Speed 160 | 160 160 160 160 Overloaded Moves . | . . . . Propulsion Burnouts . | . . . . Robots Hopped . | . . . . Potential Cave-ins . | . . . . Cave-ins Triggered . | . . . . Exploration Rate (%) 13 | 4 4 24 23 Regions Visited 3 Branch Regions 2 Pre-discovered Areas 2 | . . 1 1 Known Exits Taken . | . . . . Unknown Exits Taken 3 | 1 1 1 . Scrap Searched 1 | . . 1 . Spaces Dug . | . . . . Terrain Destroyed . | . . . . Melee . | . . . . Projectile . | . . . . AOE . | . . . . Terrain Rammed . | . . . . Walls Destroyed . | . . . . Machines Disabled . | . . . . Actions | -11 -10 -10 -10 --------- Run | Yrd Mat Min Sub Total 453 | 32 7 140 274 Wait 40 | . . 25 15 Move 355 | 26 7 78 244 Hop . | . . . . Pick Up 7 | 3 . 1 3 Fast Attach . | . . . . Attach 4 | 3 . . 1 Detach . | . . . . Swap 1 | . . . 1 Drop 1 | . . . 1 Fire 45 | . . 36 9 Melee . | . . . . Ram . | . . . . Kick . | . . . . Crush . | . . . . Escape Stasis . | . . . . Rewire . | . . . . Trap . | . . . . Miscellaneous . | . . . . Route ------- -11/Scrapyard -10/Materials -10/Mines -10/Subcaves History --------- Turn | Location | Event 2 | -11/Scrapyard | Discovered new exit (range 16) 35 | -11/Scrapyard | Entered Materials 35 | -10/Materials | Discovered new exit (range 7) 47 | -10/Materials | Entered Mines 192 | -10/Mines | Assisted by bots powering up and referring to "LRC-V3" 220 | -10/Mines | Assembled infested the area 260 | -10/Mines | Discovered new exit (range 3) 263 | -10/Mines | Entered Subcaves 263 | -10/Subcaves | Accompanied by 3 allies 264 | -10/Subcaves | Approached by a straggling Scientist 302 | -10/Subcaves | Build established: Mutant 402 | -10/Subcaves | Shifting Twisted Machinery released Sub. Machine Gun 430 | -10/Subcaves | Learned location of Zion (-7) 452 | -10/Subcaves | Core integrity fell below 50% 461 | -10/Subcaves | Core integrity fell below 20% 466 | -10/Subcaves | Destroyed by V5-6QK(R) with Subdweller Machine Gun Last Messages --------------- S-10 Pest destroyed. Mercenary 1a destroyed. Lgt. Assault Rifle fries itself beyond repair. S-10 Pest destroyed. Flight Unit fries itself beyond repair. Lgt. Assault Rifle fries itself beyond repair. Acquired Flight Unit. Flight Unit fries itself beyond repair. Subatomizers dissect the Lgt. Ion Engine. Dropped Lgt. Treads. Lgt. Ion Engine fries itself beyond repair. Acquired 10 matter. Flight Unit destroyed. 3K-TST(R) destroyed. Sub. Machine Gun falls loose from the Twisted Machinery. Acquired Sub. Machine Gun. Acquired derelict log, extracted data. World map updated: -7/Zion. Sub. Machine Gun destroyed. Map ----- +----------------------------------------------------+ | | | | | | | ?????????????????????????????????????????????????? | | ?????????????????????????????????????????????????? | | ?????????????????????????????????????????????????? | | ?????????????????????????????????????????????????? | | ?????????????????????????????????????????????????? | | ?????????????????????????????????????????????????? | | ?????????????????????????????????????????????????? | | ?????????????????????????????????????????????????? | | ?????????????????????????????????????????????????? | | ?????????????????????????????????????????????????? | | ?????????????????????????????????????????????????? | | ?????????????????????????????????????????????????? | | ????????????????????####?????????????????????????? | | ????????????????????# ?????????????????????????? | | ????????????#???????? #??????##??#?????????????? | | ???????????? ##?????## #????# ## ??????????????? | | ????????????? ##??##< <###? ???????????????? | | ????????????? #??? < ## ????????????????? | | ?????????###?# ???? #?????????????????? | | ?????????# ## ????? ##????????????????? | | ?????????# #??????# #####????????????? | | ??????????# #?????## # ????????? | | ??????????# #????## @ R ???????? | | ??????????# ###### R ???????? | | ?? ??????## ## ###??????????? | | ?"" ??????### #???????????? | | ?# ???????# #??????????? | | ## "####??# ?????????? | | # #?# ## ### ?????????? | | ## ### ##??? ?????????? | | # ### #??????#??????????? | | # ## #?????????????????? | | # #????????????????? | | ### ??#######??????? | | ### ## #?? #####?# #?????## | | ????## ### ##??# ##????## ?????# | | ?????###?# #????##?##### #?????? | | #????????## #???????# #####?? | | ##??????### #???????# #?? | | #???#### ### ######???????# #?? | | #????# ##?###????????????## # ##?? | | ###### ##???????????????# ## # #?# | | # # # #???????????????## ### #### | | #???????########?# #?### ### | | ## ##???????# ### #??## | | # #####????????# ## ##??# | | #### ## #????????????## # #??# | +----------------------------------------------------+ Best States ------------- Heat Dissipation 25 Energy Generation 5 Energy Capacity 100 Matter Stores 300 Matter Capacity 300 Sight Range 16 Terrain Scan Density 10 Evasion (%) 62 Recoil Reduction 2 Item Schematics ----------------- None Robot Schematics ------------------ None Fabricated ------------ Nothing Repaired ---------- Nothing Studied --------- None Alien Tech Used ----------------- None Achievements -------------- None Challenges ------------ None Game ------ Seed TargetExpertTriangulator Manual? 0 Play Time 00:05:10 Cumulative 249.4 hours Start 2026.03.20 @ 11:53:21 End 2026.03.20 @ 13:54:03 Sessions 3 Manual Loads 0 Difficulty Rogue Special Mode None Game No. 676 Rogue 674 Adventurer 2 Explorer 0 Win Type - Total 0 Types 0/0/0/0/0/0/0/0/0/0 Lore% 66 Gallery% 62 Achievement% 42 Wizard Run 0 Options --------- Layout 1 ASCII 0 Keyboard 0 Movement Mouse Keybinds 0 Fullscreen 1 Font 24/Smallcaps Map View 50x35 Zoom Use 0% Tactical HUD 0 Map Filters NONE Filters NONE Steam 1 RUN: ba861416-240a-4e37-b03b-475310555fcb